[Event "Titled Tuesday Blitz March 28 Early 2023"]
[White "Pasti, Aron"]
[Black "Ordekalog"]
[WhiteFideId "785857"]
[WhiteElo "2173"]
[BlackElo "2561"]
[Result "0-1"]
[Round "04"]
[TimeControl "180+2"]
[Date "2023.03.28"]
[WhiteClock "0:00:15"]
[BlackClock "0:00:09"]

1. e4 {[%clk 0:03:00]}  c5 {[%clk 0:02:59]} 2. d4 {[%clk 0:03:01]}  cxd4 {[%clk 0:02:58]} 3. c3 {[%clk 0:03:01]}  d5 {[%clk 0:02:54]} 4. Bb5+ {[%clk 0:02:58]}  Bd7 {[%clk 0:02:54]} 5. Bxd7+ {[%clk 0:02:54]}  Qxd7 {[%clk 0:02:53]} 6. exd5 {[%clk 0:02:36]}  Qxd5 {[%clk 0:02:52]} 7. Nf3 {[%clk 0:02:18]}  Qe4+ {[%clk 0:02:41]} 8. Qe2 {[%clk 0:02:17]}  Qxe2+ {[%clk 0:02:39]} 9. Kxe2 {[%clk 0:02:18]}  Nc6 {[%clk 0:02:27]} 10. cxd4 {[%clk 0:02:13]}  e6 {[%clk 0:02:27]} 11. Nc3 {[%clk 0:02:09]}  Rd8 {[%clk 0:02:25]} 12. Rd1 {[%clk 0:02:02]}  Nf6 {[%clk 0:02:24]} 13. Bg5 {[%clk 0:02:02]}  Be7 {[%clk 0:02:24]} 14. Rac1 {[%clk 0:02:01]}  h6 {[%clk 0:02:20]} 15. Be3 {[%clk 0:01:59]}  Nd5 {[%clk 0:02:16]} 16. Nxd5 {[%clk 0:01:59]}  Rxd5 {[%clk 0:02:14]} 17. Ne5 {[%clk 0:01:58]}  Rd6 {[%clk 0:01:23]} 18. Nxc6 {[%clk 0:01:54]}  Rxc6 {[%clk 0:01:23]} 19. Rxc6 {[%clk 0:01:47]}  bxc6 {[%clk 0:01:24]} 20. Rc1 {[%clk 0:01:47]}  Kd7 {[%clk 0:01:24]} 21. Kd3 {[%clk 0:01:46]}  Rb8 {[%clk 0:01:24]} 22. b3 {[%clk 0:01:46]}  Rb5 {[%clk 0:01:24]} 23. Kc4 {[%clk 0:01:44]}  a6 {[%clk 0:01:21]} 24. a4 {[%clk 0:01:43]}  Rh5 {[%clk 0:01:17]} 25. h3 {[%clk 0:01:42]}  Rf5 {[%clk 0:01:14]} 26. g4 {[%clk 0:01:38]}  Rf3 {[%clk 0:01:14]} 27. Rh1 {[%clk 0:01:34]}  Bh4 {[%clk 0:01:12]} 28. Rh2 {[%clk 0:01:02]}  Kd6 {[%clk 0:01:02]} 29. Kb4 {[%clk 0:01:02]}  Bd8 {[%clk 0:00:56]} 30. Rh1 {[%clk 0:01:00]}  Kd5 {[%clk 0:00:54]} 31. h4 {[%clk 0:00:49]}  a5+ {[%clk 0:00:25]} 32. Kc3 {[%clk 0:00:44]}  Bb6 {[%clk 0:00:21]} 33. g5 {[%clk 0:00:17]}  Bxd4+ {[%clk 0:00:17]} 34. Kd2 {[%clk 0:00:17]}  h5 {[%clk 0:00:13]} 35. Ke2 {[%clk 0:00:17]}  Rf5 {[%clk 0:00:13]} 36. Rd1 {[%clk 0:00:17]}  e5 {[%clk 0:00:13]} 37. f4 {[%clk 0:00:17]}  c5 {[%clk 0:00:12]} 38. fxe5 {[%clk 0:00:16]}  Rxe5 {[%clk 0:00:12]} 39. Kf3 {[%clk 0:00:15]}  Rxe3+ {[%clk 0:00:12]} 40. Kf4 {[%clk 0:00:15]}  Rxb3 {[%clk 0:00:10]} 41. Kf5 {[%clk 0:00:15]}  Rf3# {[%clk 0:00:09]} 0-1


[Site "https://www.chess.com"]

[Event "Titled Tuesday Blitz March 28 Early 2023"]
[White "Melian, Juan Sebastian"]
[Black "Tarasova, Viktoriya"]
[WhiteFideId "3706575"]
[BlackFideId "4175840"]
[WhiteElo "2031"]
[BlackElo "2182"]
[Result "1/2-1/2"]
[Round "04"]
[TimeControl "180+2"]
[Date "2023.03.28"]
[WhiteClock "0:00:03"]
[BlackClock "0:00:10"]

1. e4 {[%clk 0:03:00]}  e5 {[%clk 0:02:59]} 2. Nf3 {[%clk 0:03:00]}  Nc6 {[%clk 0:02:59]} 3. Nc3 {[%clk 0:02:56]}  Nf6 {[%clk 0:02:59]} 4. a3 {[%clk 0:02:56]}  a5 {[%clk 0:02:50]} 5. Bc4 {[%clk 0:02:46]}  Bc5 {[%clk 0:02:48]} 6. d3 {[%clk 0:02:46]}  h6 {[%clk 0:02:47]} 7. Be3 {[%clk 0:02:44]}  Bxe3 {[%clk 0:02:44]} 8. fxe3 {[%clk 0:02:45]}  d6 {[%clk 0:02:44]} 9. O-O {[%clk 0:02:45]}  O-O {[%clk 0:02:44]} 10. Qe1 {[%clk 0:02:43]}  Be6 {[%clk 0:02:43]} 11. Nh4 {[%clk 0:02:29]}  Nh7 {[%clk 0:02:07]} 12. Nf5 {[%clk 0:02:16]}  Bxc4 {[%clk 0:01:55]} 13. dxc4 {[%clk 0:02:12]}  Ne7 {[%clk 0:01:55]} 14. Qg3 {[%clk 0:01:57]}  Nxf5 {[%clk 0:01:54]} 15. Rxf5 {[%clk 0:01:58]}  Kh8 {[%clk 0:01:48]} 16. Raf1 {[%clk 0:01:55]}  Qd7 {[%clk 0:01:43]} 17. h4 {[%clk 0:01:53]}  c6 {[%clk 0:01:41]} 18. Rd1 {[%clk 0:01:39]}  Qe6 {[%clk 0:01:40]} 19. b3 {[%clk 0:01:38]}  g6 {[%clk 0:01:37]} 20. Rf2 {[%clk 0:01:36]}  f5 {[%clk 0:01:37]} 21. Rfd2 {[%clk 0:01:33]}  Rad8 {[%clk 0:01:13]} 22. c5 {[%clk 0:01:32]}  f4 {[%clk 0:01:07]} 23. exf4 {[%clk 0:01:19]}  exf4 {[%clk 0:01:06]} 24. Qf3 {[%clk 0:01:19]}  Rf6 {[%clk 0:01:02]} 25. Rxd6 {[%clk 0:01:14]}  Rxd6 {[%clk 0:01:02]} 26. cxd6 {[%clk 0:01:15]}  Rf7 {[%clk 0:00:55]} 27. e5 {[%clk 0:00:44]}  Nf8 {[%clk 0:00:53]} 28. Qe4 {[%clk 0:00:41]}  Nd7 {[%clk 0:00:52]} 29. Re1 {[%clk 0:00:40]}  Rf5 {[%clk 0:00:52]} 30. Qd4 {[%clk 0:00:36]}  Kh7 {[%clk 0:00:52]} 31. Re4 {[%clk 0:00:26]}  g5 {[%clk 0:00:51]} 32. hxg5 {[%clk 0:00:23]}  hxg5 {[%clk 0:00:51]} 33. Qd3 {[%clk 0:00:19]}  Kg7 {[%clk 0:00:52]} 34. Qd4 {[%clk 0:00:18]}  Kf7 {[%clk 0:00:43]} 35. Na4 {[%clk 0:00:14]}  Rxe5 {[%clk 0:00:40]} 36. Rxe5 {[%clk 0:00:12]}  Qxe5 {[%clk 0:00:40]} 37. Qd2 {[%clk 0:00:08]}  Ke6 {[%clk 0:00:37]} 38. Nc3 {[%clk 0:00:05]}  g4 {[%clk 0:00:29]} 39. Ne2 {[%clk 0:00:05]}  f3 {[%clk 0:00:28]} 40. gxf3 {[%clk 0:00:06]}  gxf3 {[%clk 0:00:28]} 41. Nd4+ {[%clk 0:00:06]}  Kf7 {[%clk 0:00:25]} 42. Nxf3 {[%clk 0:00:06]}  Qg3+ {[%clk 0:00:25]} 43. Qg2 {[%clk 0:00:07]}  Qxd6 {[%clk 0:00:25]} 44. Qg4 {[%clk 0:00:05]}  Qd1+ {[%clk 0:00:22]} 45. Kg2 {[%clk 0:00:06]}  Qe2+ {[%clk 0:00:23]} 46. Kg3 {[%clk 0:00:06]}  Ke7 {[%clk 0:00:20]} 47. Qg5+ {[%clk 0:00:04]}  Ke8 {[%clk 0:00:19]} 48. Qh5+ {[%clk 0:00:04]}  Kd8 {[%clk 0:00:19]} 49. Qg5+ {[%clk 0:00:04]}  Kc7 {[%clk 0:00:20]} 50. Qf4+ {[%clk 0:00:04]}  Kc8 {[%clk 0:00:20]} 51. Nd4 {[%clk 0:00:04]}  Qe1+ {[%clk 0:00:20]} 52. Kg4 {[%clk 0:00:05]}  Qg1+ {[%clk 0:00:19]} 53. Kf5 {[%clk 0:00:05]}  Qg8 {[%clk 0:00:19]} 54. Ke4 {[%clk 0:00:04]}  Qe8+ {[%clk 0:00:18]} 55. Kd3 {[%clk 0:00:05]}  Nc5+ {[%clk 0:00:18]} 56. Kc3 {[%clk 0:00:04]}  Nd7 {[%clk 0:00:18]} 57. Kb2 {[%clk 0:00:05]}  Qe7 {[%clk 0:00:18]} 58. Ka2 {[%clk 0:00:04]}  Qe8 {[%clk 0:00:17]} 59. Nf5 {[%clk 0:00:04]}  Qe6 {[%clk 0:00:13]} 60. Nd6+ {[%clk 0:00:04]}  Kd8 {[%clk 0:00:14]} 61. Nxb7+ {[%clk 0:00:04]}  Ke7 {[%clk 0:00:15]} 62. Qg5+ {[%clk 0:00:02]}  Nf6 {[%clk 0:00:14]} 63. Qg7+ {[%clk 0:00:02]}  Ke8 {[%clk 0:00:13]} 64. Qg2 {[%clk 0:00:03]}  a4 {[%clk 0:00:12]} 65. Na5 {[%clk 0:00:03]}  axb3+ {[%clk 0:00:13]} 66. Nxb3 {[%clk 0:00:04]}  Nd5 {[%clk 0:00:12]} 67. Qf3 {[%clk 0:00:04]}  Qe5 {[%clk 0:00:11]} 68. a4 {[%clk 0:00:02]}  Nc3+ {[%clk 0:00:11]} 69. Ka3 {[%clk 0:00:02]}  Nb1+ {[%clk 0:00:11]} 70. Ka2 {[%clk 0:00:03]}  Nc3+ {[%clk 0:00:11]} 71. Ka3 {[%clk 0:00:03]}  Nd5 {[%clk 0:00:11]} 72. Qd3 {[%clk 0:00:03]}  Qd6+ {[%clk 0:00:12]} 73. Kb2 {[%clk 0:00:03]}  Qe5+ {[%clk 0:00:12]} 74. Qd4 {[%clk 0:00:04]}  Qxd4+ {[%clk 0:00:09]} 75. Nxd4 {[%clk 0:00:05]}  Kd7 {[%clk 0:00:10]} 76. Kb3 {[%clk 0:00:05]}  Kc7 {[%clk 0:00:10]} 77. Kc4 {[%clk 0:00:05]}  Nb6+ {[%clk 0:00:09]} 78. Kb4 {[%clk 0:00:06]}  Nd5+ {[%clk 0:00:10]} 79. Kb3 {[%clk 0:00:05]}  Kb6 {[%clk 0:00:09]} 80. Ne2 {[%clk 0:00:06]}  c5 {[%clk 0:00:09]} 81. Nc3 {[%clk 0:00:05]}  Nc7 {[%clk 0:00:10]} 82. Kc4 {[%clk 0:00:05]}  Ne6 {[%clk 0:00:09]} 83. Kb3 {[%clk 0:00:04]}  Nd4+ {[%clk 0:00:09]} 84. Kc4 {[%clk 0:00:04]}  Nxc2 {[%clk 0:00:09]} 85. Kb3 {[%clk 0:00:04]}  Nd4+ {[%clk 0:00:09]} 86. Kc4 {[%clk 0:00:05]}  Nc2 {[%clk 0:00:09]} 87. Kd3 {[%clk 0:00:05]}  Nb4+ {[%clk 0:00:09]} 88. Ke4 {[%clk 0:00:05]}  Nc6 {[%clk 0:00:10]} 89. Kd5 {[%clk 0:00:06]}  Nb4+ {[%clk 0:00:10]} 90. Kc4 {[%clk 0:00:06]}  Nc6 {[%clk 0:00:11]} 91. Ne4 {[%clk 0:00:05]}  Ne5+ {[%clk 0:00:10]} 92. Kd5 {[%clk 0:00:05]}  Ka5 {[%clk 0:00:10]} 93. Nxc5 {[%clk 0:00:04]}  Nf3 {[%clk 0:00:09]} 94. Kc4 {[%clk 0:00:04]}  Ne5+ {[%clk 0:00:09]} 95. Kb3 {[%clk 0:00:04]}  Nc6 {[%clk 0:00:09]} 96. Nb7+ {[%clk 0:00:04]}  Kb6 {[%clk 0:00:08]} 97. Nd6 {[%clk 0:00:05]}  Nd4+ {[%clk 0:00:09]} 98. Kc4 {[%clk 0:00:05]}  Nc6 {[%clk 0:00:08]} 99. Kb3 {[%clk 0:00:04]}  Ka5 {[%clk 0:00:08]} 100. Nc4+ {[%clk 0:00:04]}  Ka6 {[%clk 0:00:08]} 101. Nb2 {[%clk 0:00:03]}  Nd4+ {[%clk 0:00:08]} 102. Kb4 {[%clk 0:00:03]}  Nc6+ {[%clk 0:00:09]} 103. Kc5 {[%clk 0:00:04]}  Ne5 {[%clk 0:00:09]} 104. Kb4 {[%clk 0:00:03]}  Nc6+ {[%clk 0:00:09]} 105. Ka3 {[%clk 0:00:03]}  Ne5 {[%clk 0:00:09]} 106. Kb3 {[%clk 0:00:02]}  Ka5 {[%clk 0:00:09]} 107. Nd1 {[%clk 0:00:02]}  Ka6 {[%clk 0:00:09]} 108. Ka3 {[%clk 0:00:03]}  Nc6 {[%clk 0:00:10]} 109. Nc3 {[%clk 0:00:04]}  Nd4 {[%clk 0:00:10]} 110. Kb4 {[%clk 0:00:03]}  Nc6+ {[%clk 0:00:10]} 111. Kc5 {[%clk 0:00:04]}  Na5 {[%clk 0:00:10]} 112. Nd5 {[%clk 0:00:04]}  Nb7+ {[%clk 0:00:10]} 113. Kb4 {[%clk 0:00:05]}  Nd6 {[%clk 0:00:10]} 114. Nc7+ {[%clk 0:00:05]}  Kb7 {[%clk 0:00:10]} 115. Nb5 {[%clk 0:00:05]}  Nc8 {[%clk 0:00:11]} 116. Kc5 {[%clk 0:00:04]}  Nb6 {[%clk 0:00:11]} 117. a5 {[%clk 0:00:05]}  Nd7+ {[%clk 0:00:10]} 118. Kb4 {[%clk 0:00:04]}  Ka6 {[%clk 0:00:10]} 119. Nc7+ {[%clk 0:00:05]}  Kb7 {[%clk 0:00:11]} 120. Nd5 {[%clk 0:00:05]}  Ne5 {[%clk 0:00:11]} 121. Kb5 {[%clk 0:00:05]}  Ka7 {[%clk 0:00:10]} 122. Nb4 {[%clk 0:00:05]}  Nd7 {[%clk 0:00:10]} 123. Nc6+ {[%clk 0:00:05]}  Kb7 {[%clk 0:00:09]} 124. a6+ {[%clk 0:00:06]}  Ka8 {[%clk 0:00:10]} 125. Nb4 {[%clk 0:00:04]}  Nb8 {[%clk 0:00:10]} 126. Kb6 {[%clk 0:00:03]}  Nxa6 {[%clk 0:00:10]} 1/2-1/2


[Site "https://www.chess.com"]

[Event "Titled Tuesday Blitz March 28 Early 2023"]
[White "Krsnik Cohar, Ivan Vihor"]
[Black "Meunier-Pion, Jean"]
[WhiteFideId "14520044"]
[BlackFideId "20685327"]
[WhiteElo "2414"]
[BlackElo "2124"]
[Result "1/2-1/2"]
[Round "04"]
[TimeControl "180+2"]
[Date "2023.03.28"]
[WhiteClock "0:00:12"]
[BlackClock "0:00:23"]

1. e4 {[%clk 0:03:00]}  c5 {[%clk 0:02:57]} 2. Ne2 {[%clk 0:03:00]}  Nf6 {[%clk 0:02:54]} 3. d3 {[%clk 0:02:57]}  Nc6 {[%clk 0:02:52]} 4. g3 {[%clk 0:02:57]}  d5 {[%clk 0:02:52]} 5. Bg2 {[%clk 0:02:57]}  dxe4 {[%clk 0:02:52]} 6. Nbc3 {[%clk 0:02:57]}  exd3 {[%clk 0:02:52]} 7. Nf4 {[%clk 0:02:56]}  dxc2 {[%clk 0:02:45]} 8. Qxc2 {[%clk 0:02:57]}  Nb4 {[%clk 0:02:38]} 9. Qe2 {[%clk 0:02:50]}  g5 {[%clk 0:02:31]} 10. a3 {[%clk 0:02:36]}  gxf4 {[%clk 0:01:53]} 11. axb4 {[%clk 0:02:36]}  cxb4 {[%clk 0:01:53]} 12. Qb5+ {[%clk 0:02:04]}  Bd7 {[%clk 0:01:39]} 13. Qxb4 {[%clk 0:02:04]}  Bc6 {[%clk 0:01:16]} 14. Bxc6+ {[%clk 0:01:55]}  bxc6 {[%clk 0:01:17]} 15. Bxf4 {[%clk 0:01:34]}  e5 {[%clk 0:01:16]} 16. Qc4 {[%clk 0:01:33]}  exf4 {[%clk 0:01:15]} 17. Qxc6+ {[%clk 0:01:33]}  Nd7 {[%clk 0:01:14]} 18. Nd5 {[%clk 0:01:25]}  Rc8 {[%clk 0:00:39]} 19. Nf6+ {[%clk 0:01:23]}  Qxf6 {[%clk 0:00:33]} 20. Qxc8+ {[%clk 0:01:23]}  Qd8 {[%clk 0:00:27]} 21. Qc3 {[%clk 0:01:13]}  Qe7+ {[%clk 0:00:15]} 22. Kf1 {[%clk 0:01:06]}  Qf6 {[%clk 0:00:10]} 23. Re1+ {[%clk 0:00:57]}  Kd8 {[%clk 0:00:09]} 24. Qf3 {[%clk 0:00:52]}  fxg3 {[%clk 0:00:07]} 25. Qa8+ {[%clk 0:00:48]}  Kc7 {[%clk 0:00:08]} 26. Qxa7+ {[%clk 0:00:45]}  Kd6 {[%clk 0:00:06]} 27. Rd1+ {[%clk 0:00:42]}  Ke5 {[%clk 0:00:04]} 28. Qe3+ {[%clk 0:00:32]}  Kf5 {[%clk 0:00:03]} 29. Rxd7 {[%clk 0:00:30]}  g2+ {[%clk 0:00:02]} 30. Kxg2 {[%clk 0:00:29]}  Rg8+ {[%clk 0:00:03]} 31. Kf1 {[%clk 0:00:18]}  Qc6 {[%clk 0:00:03]} 32. Qd3+ {[%clk 0:00:15]}  Ke6 {[%clk 0:00:04]} 33. Rg1 {[%clk 0:00:10]}  Rxg1+ {[%clk 0:00:03]} 34. Kxg1 {[%clk 0:00:09]}  Qxd7 {[%clk 0:00:04]} 35. Qe4+ {[%clk 0:00:08]}  Kd6 {[%clk 0:00:04]} 36. Qxh7 {[%clk 0:00:07]}  Qg4+ {[%clk 0:00:05]} 37. Kf1 {[%clk 0:00:07]}  Qd1+ {[%clk 0:00:06]} 38. Kg2 {[%clk 0:00:07]}  Qg4+ {[%clk 0:00:07]} 39. Kh1 {[%clk 0:00:08]}  Qf3+ {[%clk 0:00:07]} 40. Kg1 {[%clk 0:00:08]}  Be7 {[%clk 0:00:07]} 41. Qh6+ {[%clk 0:00:06]}  Bf6 {[%clk 0:00:07]} 42. h3 {[%clk 0:00:06]}  Qd1+ {[%clk 0:00:07]} 43. Kh2 {[%clk 0:00:05]}  Qf3 {[%clk 0:00:07]} 44. Kg1 {[%clk 0:00:05]}  Kd5 {[%clk 0:00:08]} 45. Qd2+ {[%clk 0:00:04]}  Bd4 {[%clk 0:00:07]} 46. b4 {[%clk 0:00:03]}  Ke4 {[%clk 0:00:08]} 47. b5 {[%clk 0:00:03]}  Qxh3 {[%clk 0:00:07]} 48. b6 {[%clk 0:00:02]}  Qg4+ {[%clk 0:00:07]} 49. Kf1 {[%clk 0:00:03]}  Qh3+ {[%clk 0:00:08]} 50. Kg1 {[%clk 0:00:03]}  Qg4+ {[%clk 0:00:08]} 51. Kf1 {[%clk 0:00:03]}  Qd7 {[%clk 0:00:06]} 52. Qe2+ {[%clk 0:00:02]}  Kd5 {[%clk 0:00:07]} 53. b7 {[%clk 0:00:03]}  Ba7 {[%clk 0:00:04]} 54. Qf3+ {[%clk 0:00:03]}  Kd6 {[%clk 0:00:04]} 55. Qb3 {[%clk 0:00:03]}  Kc7 {[%clk 0:00:04]} 56. Qc4+ {[%clk 0:00:03]}  Kb8 {[%clk 0:00:05]} 57. Qb3 {[%clk 0:00:03]}  Qxb7 {[%clk 0:00:05]} 58. Qg3+ {[%clk 0:00:04]}  Qc7 {[%clk 0:00:05]} 59. Qg8+ {[%clk 0:00:04]}  Kb7 {[%clk 0:00:06]} 60. Qg2+ {[%clk 0:00:05]}  Qc6 {[%clk 0:00:06]} 61. Qg7 {[%clk 0:00:05]}  Qb5+ {[%clk 0:00:07]} 62. Kg1 {[%clk 0:00:05]}  Qd5 {[%clk 0:00:07]} 63. Qb2+ {[%clk 0:00:04]}  Bb6 {[%clk 0:00:08]} 64. Qf6 {[%clk 0:00:04]}  Qe6 {[%clk 0:00:08]} 65. Qg7 {[%clk 0:00:02]}  Kc7 {[%clk 0:00:08]} 66. Qc3+ {[%clk 0:00:01]}  Kb7 {[%clk 0:00:08]} 67. Qd2 {[%clk 0:00:01]}  Qg6+ {[%clk 0:00:08]} 68. Kf1 {[%clk 0:00:02]}  Qe6 {[%clk 0:00:08]} 69. Qc2 {[%clk 0:00:02]}  Qf6 {[%clk 0:00:08]} 70. Kg1 {[%clk 0:00:02]}  Qxf2+ {[%clk 0:00:07]} 71. Qxf2 {[%clk 0:00:02]}  Bxf2+ {[%clk 0:00:08]} 72. Kxf2 {[%clk 0:00:03]}  Kc6 {[%clk 0:00:09]} 73. Kf3 {[%clk 0:00:04]}  Kd6 {[%clk 0:00:08]} 74. Kf4 {[%clk 0:00:04]}  Ke6 {[%clk 0:00:09]} 75. Ke4 {[%clk 0:00:05]}  Kf6 {[%clk 0:00:09]} 76. Kf4 {[%clk 0:00:05]}  Kg6 {[%clk 0:00:10]} 77. Kg4 {[%clk 0:00:06]}  Kf6 {[%clk 0:00:09]} 78. Kf4 {[%clk 0:00:06]}  Ke7 {[%clk 0:00:08]} 79. Ke5 {[%clk 0:00:06]}  Ke8 {[%clk 0:00:08]} 80. Kf5 {[%clk 0:00:05]}  Kf8 {[%clk 0:00:08]} 81. Kf6 {[%clk 0:00:04]}  Kg8 {[%clk 0:00:09]} 82. Kf5 {[%clk 0:00:04]}  Kg7 {[%clk 0:00:09]} 83. Kg5 {[%clk 0:00:05]}  Kh7 {[%clk 0:00:09]} 84. Kf6 {[%clk 0:00:03]}  Kg8 {[%clk 0:00:10]} 85. Kf5 {[%clk 0:00:04]}  Kg7 {[%clk 0:00:10]} 86. Kg5 {[%clk 0:00:04]}  f6+ {[%clk 0:00:11]} 87. Kf5 {[%clk 0:00:05]}  Kf7 {[%clk 0:00:11]} 88. Kf4 {[%clk 0:00:05]}  Kg6 {[%clk 0:00:12]} 89. Kg4 {[%clk 0:00:06]}  f5+ {[%clk 0:00:13]} 90. Kf4 {[%clk 0:00:06]}  Kf6 {[%clk 0:00:14]} 91. Kf3 {[%clk 0:00:07]}  Kg5 {[%clk 0:00:15]} 92. Kg3 {[%clk 0:00:08]}  Kg6 {[%clk 0:00:15]} 93. Kf4 {[%clk 0:00:07]}  Kf6 {[%clk 0:00:15]} 94. Kf3 {[%clk 0:00:08]}  Ke5 {[%clk 0:00:16]} 95. Ke3 {[%clk 0:00:08]}  f4+ {[%clk 0:00:17]} 96. Kf3 {[%clk 0:00:09]}  Kf5 {[%clk 0:00:17]} 97. Kf2 {[%clk 0:00:09]}  Ke4 {[%clk 0:00:18]} 98. Ke2 {[%clk 0:00:10]}  f3+ {[%clk 0:00:19]} 99. Kf2 {[%clk 0:00:10]}  Kf4 {[%clk 0:00:19]} 100. Kf1 {[%clk 0:00:11]}  Kg4 {[%clk 0:00:20]} 101. Kf2 {[%clk 0:00:10]}  Kf4 {[%clk 0:00:20]} 102. Kf1 {[%clk 0:00:11]}  Kf5 {[%clk 0:00:21]} 103. Kf2 {[%clk 0:00:11]}  Ke4 {[%clk 0:00:22]} 104. Kf1 {[%clk 0:00:11]}  Ke3 {[%clk 0:00:22]} 105. Ke1 {[%clk 0:00:11]}  f2+ {[%clk 0:00:23]} 106. Kf1 {[%clk 0:00:12]}  Kf3 {[%clk 0:00:23]} 1/2-1/2


[Site "https://www.chess.com"]

[Event "Titled Tuesday Blitz March 28 Early 2023"]
[White "Moral Garcia, Serafin"]
[Black "Rios Escobar, Adan"]
[WhiteFideId "2201925"]
[BlackFideId "3403645"]
[WhiteElo "2254"]
[BlackElo "2411"]
[Result "0-1"]
[Round "04"]
[TimeControl "180+2"]
[Date "2023.03.28"]
[WhiteClock "0:00:04"]
[BlackClock "0:00:02"]

1. Nf3 {[%clk 0:03:00]}  Nf6 {[%clk 0:02:56]} 2. b3 {[%clk 0:03:01]}  g6 {[%clk 0:02:57]} 3. Bb2 {[%clk 0:03:01]}  Bg7 {[%clk 0:02:58]} 4. e3 {[%clk 0:03:01]}  c5 {[%clk 0:02:58]} 5. c4 {[%clk 0:03:01]}  d6 {[%clk 0:02:59]} 6. Be2 {[%clk 0:03:01]}  e5 {[%clk 0:02:58]} 7. O-O {[%clk 0:02:58]}  O-O {[%clk 0:02:58]} 8. d4 {[%clk 0:02:56]}  cxd4 {[%clk 0:02:54]} 9. exd4 {[%clk 0:02:54]}  e4 {[%clk 0:02:55]} 10. Nfd2 {[%clk 0:02:54]}  d5 {[%clk 0:02:48]} 11. cxd5 {[%clk 0:02:54]}  Qxd5 {[%clk 0:02:40]} 12. Nc4 {[%clk 0:02:37]}  Nc6 {[%clk 0:02:35]} 13. Nc3 {[%clk 0:02:34]}  Qxd4 {[%clk 0:02:21]} 14. Qc2 {[%clk 0:02:30]}  Nb4 {[%clk 0:02:11]} 15. Qc1 {[%clk 0:02:25]}  Qd8 {[%clk 0:01:56]} 16. Rd1 {[%clk 0:01:19]}  Nd3 {[%clk 0:01:54]} 17. Qe3 {[%clk 0:01:13]}  Bf5 {[%clk 0:01:48]} 18. Ba3 {[%clk 0:01:05]}  Re8 {[%clk 0:01:46]} 19. Nd6 {[%clk 0:01:04]}  Ng4 {[%clk 0:01:43]} 20. Bxg4 {[%clk 0:01:00]}  Bxc3 {[%clk 0:01:35]} 21. Bxf5 {[%clk 0:00:54]}  Bxa1 {[%clk 0:01:32]} 22. Nxe8 {[%clk 0:00:45]}  Bd4 {[%clk 0:01:20]} 23. Qxe4 {[%clk 0:00:05]}  Bxf2+ {[%clk 0:00:06]} 24. Kf1 {[%clk 0:00:04]}  Qxe8 {[%clk 0:00:03]} 25. Qxe8+ {[%clk 0:00:04]}  Rxe8 {[%clk 0:00:02]} 0-1


[Site "https://www.chess.com"]

[Event "Titled Tuesday Blitz March 28 Early 2023"]
[White "Arias, Juan Cruz"]
[Black "Topalov, Aleksandar"]
[WhiteFideId "118540"]
[BlackFideId "925659"]
[WhiteElo "2243"]
[BlackElo "2151"]
[Result "1-0"]
[Round "04"]
[TimeControl "180+2"]
[Date "2023.03.28"]
[WhiteClock "0:01:53"]
[BlackClock "0:01:25"]

1. d4 {[%clk 0:03:00]}  Nf6 {[%clk 0:02:59]} 2. Bg5 {[%clk 0:03:00]}  g6 {[%clk 0:02:59]} 3. Nf3 {[%clk 0:02:57]}  Bg7 {[%clk 0:02:58]} 4. e3 {[%clk 0:02:56]}  O-O {[%clk 0:02:57]} 5. Bc4 {[%clk 0:02:54]}  d6 {[%clk 0:02:55]} 6. O-O {[%clk 0:02:53]}  c5 {[%clk 0:02:54]} 7. c3 {[%clk 0:02:53]}  Nc6 {[%clk 0:02:50]} 8. Nbd2 {[%clk 0:02:52]}  Qc7 {[%clk 0:02:49]} 9. h3 {[%clk 0:02:47]}  a6 {[%clk 0:02:49]} 10. a4 {[%clk 0:02:46]}  b6 {[%clk 0:02:49]} 11. Bf4 {[%clk 0:02:37]}  Rb8 {[%clk 0:02:45]} 12. Be2 {[%clk 0:02:19]}  Bb7 {[%clk 0:02:28]} 13. Bh2 {[%clk 0:02:18]}  Rfc8 {[%clk 0:02:26]} 14. Qb3 {[%clk 0:02:17]}  cxd4 {[%clk 0:02:19]} 15. cxd4 {[%clk 0:02:15]}  Na5 {[%clk 0:02:19]} 16. Qa3 {[%clk 0:02:12]}  Ne4 {[%clk 0:02:07]} 17. b4 {[%clk 0:02:09]}  Nxd2 {[%clk 0:02:04]} 18. Nxd2 {[%clk 0:02:10]}  Qc2 {[%clk 0:01:52]} 19. Ra2 {[%clk 0:01:55]}  Qc6 {[%clk 0:01:25]} 20. Bf3 {[%clk 0:01:53]} 1-0


[Site "https://www.chess.com"]

[Event "Titled Tuesday Blitz March 28 Early 2023"]
[White "Vallejo Diaz, Javier"]
[Black "Kozelov, Roman"]
[WhiteFideId "2256398"]
[BlackFideId "14133377"]
[WhiteElo "2519"]
[BlackElo "2149"]
[Result "1/2-1/2"]
[Round "04"]
[TimeControl "180+2"]
[Date "2023.03.28"]
[WhiteClock "0:00:10"]
[BlackClock "0:00:38"]

1. e4 {[%clk 0:03:00]}  e6 {[%clk 0:02:59]} 2. d4 {[%clk 0:03:00]}  d5 {[%clk 0:03:00]} 3. Nd2 {[%clk 0:03:01]}  dxe4 {[%clk 0:02:59]} 4. Nxe4 {[%clk 0:03:01]}  Nd7 {[%clk 0:02:59]} 5. Nf3 {[%clk 0:02:56]}  Ngf6 {[%clk 0:02:59]} 6. Nxf6+ {[%clk 0:02:49]}  Nxf6 {[%clk 0:02:55]} 7. Be3 {[%clk 0:02:50]}  Bd6 {[%clk 0:02:53]} 8. h3 {[%clk 0:02:45]}  O-O {[%clk 0:02:52]} 9. Bd3 {[%clk 0:02:42]}  b6 {[%clk 0:02:52]} 10. O-O {[%clk 0:02:38]}  Bb7 {[%clk 0:02:53]} 11. c4 {[%clk 0:02:38]}  c5 {[%clk 0:02:51]} 12. dxc5 {[%clk 0:02:23]}  bxc5 {[%clk 0:02:49]} 13. Qe2 {[%clk 0:02:21]}  Qc7 {[%clk 0:02:41]} 14. Bg5 {[%clk 0:02:15]}  Nh5 {[%clk 0:02:39]} 15. Rfd1 {[%clk 0:02:07]}  Nf4 {[%clk 0:02:33]} 16. Bxf4 {[%clk 0:02:05]}  Bxf4 {[%clk 0:02:33]} 17. Be4 {[%clk 0:02:04]}  Rad8 {[%clk 0:02:28]} 18. g3 {[%clk 0:01:46]}  Bd6 {[%clk 0:02:04]} 19. Rd3 {[%clk 0:01:38]}  Be7 {[%clk 0:02:02]} 20. Rad1 {[%clk 0:01:37]}  Bf6 {[%clk 0:01:55]} 21. b3 {[%clk 0:01:29]}  g6 {[%clk 0:01:51]} 22. h4 {[%clk 0:01:26]}  h5 {[%clk 0:01:50]} 23. Rxd8 {[%clk 0:00:34]}  Rxd8 {[%clk 0:01:48]} 24. Rxd8+ {[%clk 0:00:35]}  Bxd8 {[%clk 0:01:47]} 25. Bxb7 {[%clk 0:00:35]}  Qxb7 {[%clk 0:01:48]} 26. Nd2 {[%clk 0:00:30]}  Bf6 {[%clk 0:01:46]} 27. Ne4 {[%clk 0:00:29]}  Bd4 {[%clk 0:01:45]} 28. Ng5 {[%clk 0:00:28]}  e5 {[%clk 0:01:38]} 29. Ne4 {[%clk 0:00:24]}  Kg7 {[%clk 0:01:33]} 30. Qd3 {[%clk 0:00:15]}  Qd7 {[%clk 0:01:26]} 31. Kg2 {[%clk 0:00:11]}  f5 {[%clk 0:01:21]} 32. Nc3 {[%clk 0:00:11]}  e4 {[%clk 0:01:18]} 33. Qd2 {[%clk 0:00:10]}  Qe6 {[%clk 0:01:10]} 34. Nd5 {[%clk 0:00:10]}  a6 {[%clk 0:01:03]} 35. Qa5 {[%clk 0:00:08]}  e3 {[%clk 0:01:01]} 36. Qc7+ {[%clk 0:00:08]}  Kh6 {[%clk 0:00:59]} 37. Qf4+ {[%clk 0:00:08]}  Kg7 {[%clk 0:01:00]} 38. fxe3 {[%clk 0:00:09]}  Be5 {[%clk 0:00:55]} 39. Qg5 {[%clk 0:00:09]}  Bd6 {[%clk 0:00:50]} 40. Kf2 {[%clk 0:00:07]}  Qe5 {[%clk 0:00:47]} 41. Nf4 {[%clk 0:00:05]}  Qb2+ {[%clk 0:00:45]} 42. Kf3 {[%clk 0:00:06]}  Bxf4 {[%clk 0:00:45]} 43. gxf4 {[%clk 0:00:04]}  Qxa2 {[%clk 0:00:41]} 44. Qe7+ {[%clk 0:00:05]}  Kh6 {[%clk 0:00:41]} 45. Qf8+ {[%clk 0:00:06]}  Kh7 {[%clk 0:00:41]} 46. Qxc5 {[%clk 0:00:06]}  Qxb3 {[%clk 0:00:41]} 47. Qe7+ {[%clk 0:00:07]}  Kh6 {[%clk 0:00:41]} 48. c5 {[%clk 0:00:07]}  Qd1+ {[%clk 0:00:39]} 49. Kf2 {[%clk 0:00:07]}  Qd2+ {[%clk 0:00:39]} 50. Kf3 {[%clk 0:00:08]}  Qd1+ {[%clk 0:00:39]} 51. Kg3 {[%clk 0:00:08]}  Qg1+ {[%clk 0:00:39]} 52. Kf3 {[%clk 0:00:09]}  Qf1+ {[%clk 0:00:40]} 53. Kg3 {[%clk 0:00:10]}  Qg1+ {[%clk 0:00:38]} 54. Kf3 {[%clk 0:00:10]}  Qf1+ {[%clk 0:00:38]} 55. Kg3 {[%clk 0:00:10]}  Qg1+ {[%clk 0:00:38]} 1/2-1/2


[Site "https://www.chess.com"]